[Event "MČR juniorů a juniorek v rapid šachu 2024"]
[Site "Hotel Fit Fun, Harrachov, Czech Republic"]
[Date "2024.09.21"]
[Round "5.7"]
[White "Bezdek Tomas"]
[Black "Mikolas Petr"]
[Result "0-1"]
[TimeControl "20+5"]
[WhiteFideId "23733551"]
[BlackFideId "23713224"]
[WhiteElo "1973"]
[BlackElo "1892"]

1. d4 {[%clk 00:20:09]} Nf6 {[%clk 00:20:09]} {[%emt 00:00:02]} 2. c4 {[%clk
00:20:13]} e6 {[%clk 00:20:13]} {[%emt 00:00:02]} 3. g3 {[%clk 00:20:18]} d5
{[%clk 00:20:01]} {[%emt 00:00:17]} 4. Bg2 {[%clk 00:20:20]} {[%emt 00:00:02]}
Be7 {[%clk 00:19:39]} {[%emt 00:00:27]} 5. Nf3 {[%clk 00:20:23]} {[%emt
00:00:02]} O-O {[%clk 00:19:42]} {[%emt 00:00:02]} 6. O-O {[%clk 00:20:26]}
{[%emt 00:00:02]} c6 {[%clk 00:19:17]} {[%emt 00:00:30]} 7. Nc3 {[%clk
00:20:29]} {[%emt 00:00:02]} Nbd7 {[%clk 00:19:13]} {[%emt 00:00:09]} 8. b3
{[%clk 00:20:33]} b6 {[%clk 00:19:01]} {[%emt 00:00:18]} 9. Nd2 {[%clk
00:20:35]} {[%emt 00:00:02]} Bb7 {[%clk 00:18:56]} {[%emt 00:00:10]} 10. e4
{[%clk 00:20:39]} {[%emt 00:00:02]} dxe4 {[%clk 00:19:00]} {[%emt 00:00:01]} 11.
Ndxe4 {[%clk 00:20:41]} {[%emt 00:00:02]} Nxe4 {[%clk 00:19:03]} {[%emt
00:00:02]} 12. Nxe4 {[%clk 00:20:44]} {[%emt 00:00:02]} Nf6 {[%clk 00:19:04]}
{[%emt 00:00:04]} 13. Bb2 {[%clk 00:20:44]} {[%emt 00:00:06]} Rc8 {[%clk
00:18:06]} {[%emt 00:01:04]} 14. Qe2 {[%clk 00:20:40]} {[%emt 00:00:08]} Qc7
{[%clk 00:16:42]} {[%emt 00:01:29]} 15. Nxf6+ {[%clk 00:20:41]} {[%emt
00:00:05]} Bxf6 {[%clk 00:16:45]} {[%emt 00:00:01]} 16. c5 {[%emt 00:00:48]}
bxc5 {[%clk 00:15:59]} {[%emt 00:00:05]} 17. dxc5 {[%clk 00:20:45]} {[%emt
00:00:05]} Bxb2 {[%clk 00:15:59]} {[%emt 00:00:04]} 18. Qxb2 {[%clk 00:20:48]}
Rcd8 {[%clk 00:14:01]} {[%emt 00:02:04]} 19. b4 {[%clk 00:18:58]} {[%emt
00:01:54]} Ba6 {[%clk 00:14:04]} {[%emt 00:00:02]} 20. Rfc1 {[%clk 00:17:46]}
{[%emt 00:01:17]} Bd3 {[%clk 00:13:05]} {[%emt 00:01:05]} 21. Rc3 {[%clk
00:15:26]} {[%emt 00:02:25]} Rd7 {[%clk 00:11:38]} {[%emt 00:01:32]} 22. Qa3
{[%clk 00:13:15]} {[%emt 00:02:16]} Rfd8 {[%clk 00:10:56]} {[%emt 00:00:47]} 23.
Bf3 {[%clk 00:11:36]} {[%emt 00:01:44]} e5 {[%clk 00:07:48]} {[%emt 00:03:13]}
24. Re1 {[%clk 00:08:58]} {[%emt 00:02:43]} Rd4 {[%clk 00:07:12]} {[%emt
00:00:41]} 25. Bg2 {[%clk 00:03:46]} {[%emt 00:05:18]} e4 {[%clk 00:06:59]}
{[%emt 00:00:17]} 26. f3 {[%clk 00:03:16]} {[%emt 00:00:34]} f5 {[%clk
00:04:10]} {[%emt 00:02:56]} 27. Qb3+ {[%clk 00:03:17]} {[%emt 00:00:04]} Qf7
{[%clk 00:04:13]} {[%emt 00:00:02]} 28. Qa4 {[%clk 00:01:29]} {[%emt 00:01:53]}
Bb5 {[%clk 00:04:00]} {[%emt 00:00:18]} 29. Qa5 {[%clk 00:01:33]} {[%emt
00:00:01]} Rd1 {[%clk 00:02:12]} {[%emt 00:01:52]} 30. Rce3 {[%clk 00:01:28]}
{[%emt 00:00:10]} R8d2 {[%clk 00:01:50]} {[%emt 00:00:27]} 31. a4 {[%clk
00:00:21]} {[%emt 00:01:13]} Qa2 {[%clk 00:01:32]} {[%emt 00:00:23]} 32. Bh3
{[%clk 00:00:09]} {[%emt 00:00:17]} Rxh2 {[%clk 00:01:36]} {[%emt 00:00:02]}
0-1



[ePGN "0.1;DGT LiveChess/2.2.6"]

[Event "MČR juniorů a juniorek v rapid šachu 2024"]
[Site "Hotel Fit Fun, Harrachov, Czech Republic"]
[Date "2024.09.21"]
[Round "5.8"]
[White "Slaby Matej"]
[Black "Nespurek Jakub"]
[Result "1-0"]
[TimeControl "20+5"]
[WhiteFideId "23734876"]
[BlackFideId "391816"]
[WhiteElo "1948"]
[BlackElo "1817"]

1. Nf3 {[%clk 00:20:06]} {[%emt 00:00:03]} g6 {[%clk 00:20:08]} {[%emt
00:00:02]} 2. d4 {[%clk 00:20:09]} {[%emt 00:00:02]} d6 {[%clk 00:20:11]}
{[%emt 00:00:02]} 3. e4 {[%clk 00:20:11]} {[%emt 00:00:03]} Bg7 {[%clk
00:20:15]} {[%emt 00:00:01]} 4. Bd3 {[%clk 00:20:15]} {[%emt 00:00:02]} Nd7
{[%clk 00:20:16]} {[%emt 00:00:04]} 5. O-O {[%clk 00:20:16]} {[%emt 00:00:03]}
c5 {[%clk 00:20:19]} {[%emt 00:00:03]} 6. c3 {[%clk 00:20:19]} {[%emt
00:00:01]} a6 {[%clk 00:18:59]} {[%emt 00:01:26]} 7. Re1 {[%clk 00:19:30]}
{[%emt 00:00:53]} b5 {[%clk 00:17:20]} {[%emt 00:01:45]} 8. a4 {[%clk
00:18:32]} {[%emt 00:01:03]} b4 {[%clk 00:13:22]} {[%emt 00:04:02]} 9. e5
{[%clk 00:15:23]} {[%emt 00:03:15]} dxe5 {[%clk 00:09:50]} {[%emt 00:03:37]} 10.
dxe5 {[%clk 00:15:17]} {[%emt 00:00:10]} e6 {[%clk 00:06:41]} {[%emt 00:03:15]}
11. Qe2 {[%clk 00:13:09]} {[%emt 00:02:12]} Ne7 {[%clk 00:05:43]} {[%emt
00:01:03]} 12. Nbd2 {[%clk 00:12:21]} {[%emt 00:00:53]} Bb7 {[%clk 00:04:21]}
{[%emt 00:01:27]} 13. Ne4 {[%clk 00:06:27]} {[%emt 00:05:59]} O-O {[%clk
00:03:06]} {[%emt 00:01:20]} 14. Be3 {[%clk 00:05:29]} {[%emt 00:01:04]} c4
{[%clk 00:01:39]} {[%emt 00:01:32]} 15. Bb1 {[%clk 00:05:08]} {[%emt 00:00:26]}
Bd5 {[%clk 00:01:20]} {[%emt 00:00:24]} 16. Bg5 {[%clk 00:01:36]} {[%emt
00:03:37]} Nxe5 {[%clk 00:00:26]} {[%emt 00:00:59]} 17. Nxe5 {[%clk 00:01:38]}
{[%emt 00:00:03]} Bxe5 {[%clk 00:00:29]} {[%emt 00:00:02]} 18. Nf6+ {[%clk
00:01:41]} {[%emt 00:00:02]} Bxf6 {[%clk 00:00:32]} {[%emt 00:00:03]} 19. Bxf6
{[%clk 00:01:45]} Qd6 {[%clk 00:00:13]} {[%emt 00:00:23]} 20. Qe3 {[%clk
00:01:21]} {[%emt 00:00:29]} Nf5 {[%clk 00:00:16]} {[%emt 00:00:02]} 21. Bxf5
{[%clk 00:01:16]} {[%emt 00:00:10]} exf5 {[%clk 00:00:18]} {[%emt 00:00:03]} 22.
Be7 {[%clk 00:01:06]} {[%emt 00:00:15]} Qc6 {[%clk 00:00:17]} {[%emt 00:00:05]}
23. Bxf8 {[%clk 00:01:01]} {[%emt 00:00:11]} Rxf8 {[%clk 00:00:20]} {[%emt
00:00:02]} 24. f3 {[%clk 00:01:01]} {[%emt 00:00:05]} b3 {[%clk 00:00:17]}
{[%emt 00:00:08]} 25. Rad1 {[%clk 00:00:58]} {[%emt 00:00:08]} Be6 {[%clk
00:00:18]} {[%emt 00:00:05]} 26. a5 {[%clk 00:00:26]} {[%emt 00:00:37]} Qb5
{[%clk 00:00:17]} {[%emt 00:00:06]} 27. Qh6 {[%clk 00:00:06]} {[%emt 00:00:25]}
Qxa5 {[%clk 00:00:16]} {[%emt 00:00:06]} 28. Rxe6 {[%clk 00:00:09]} {[%emt
00:00:02]} fxe6 {[%clk 00:00:13]} {[%emt 00:00:08]} 29. Rd7 {[%clk 00:00:13]}
{[%emt 00:00:01]} Qa1+ {[%clk 00:00:14]} {[%emt 00:00:04]} 30. Kf2 {[%clk
00:00:17]} {[%emt 00:00:01]} Qxb2+ {[%clk 00:00:17]} {[%emt 00:00:02]} 31. Kg3
{[%clk 00:00:21]} f4+ {[%clk 00:00:17]} {[%emt 00:00:05]} 32. Kh3 {[%clk
00:00:25]} Rf7 {[%clk 00:00:08]} {[%emt 00:00:13]} 33. Rd8+ {[%clk 00:00:29]}
{[%emt 00:00:02]} Rf8 {[%clk 00:00:12]} 34. Rxf8# {[%emt 00:00:02]} 1-0



[ePGN "0.1;DGT LiveChess/2.2.6"]

[Event "MČR juniorů a juniorek v rapid šachu 2024"]
[Site "Hotel Fit Fun, Harrachov, Czech Republic"]
[Date "2024.09.21"]
[Round "5.9"]
[White "Housa Vojtech"]
[Black "Hozda Max"]
[Result "1/2-1/2"]
[TimeControl "20+5"]
[WhiteFideId "23736364"]
[BlackFideId "23725958"]
[WhiteElo "1691"]
[BlackElo "1939"]

1. e4 {[%clk 00:20:07]} {[%emt 00:00:03]} c6 {[%clk 00:20:09]} {[%emt
00:00:02]} 2. d4 {[%clk 00:20:10]} {[%emt 00:00:02]} d5 {[%clk 00:20:12]}
{[%emt 00:00:02]} 3. exd5 {[%clk 00:20:13]} {[%emt 00:00:01]} cxd5 {[%clk
00:20:16]} {[%emt 00:00:02]} 4. Bd3 {[%clk 00:20:16]} {[%emt 00:00:02]} Nc6
{[%clk 00:20:19]} {[%emt 00:00:02]} 5. c3 {[%clk 00:20:18]} {[%emt 00:00:03]}
Nf6 {[%clk 00:20:21]} {[%emt 00:00:03]} 6. Nf3 {[%clk 00:20:18]} {[%emt
00:00:05]} Bg4 {[%clk 00:20:16]} {[%emt 00:00:10]} 7. O-O {[%clk 00:20:15]}
{[%emt 00:00:07]} e6 {[%clk 00:20:14]} {[%emt 00:00:07]} 8. h3 {[%clk
00:20:11]} {[%emt 00:00:09]} Bh5 {[%clk 00:20:14]} {[%emt 00:00:06]} 9. Bf4
{[%clk 00:19:56]} {[%emt 00:00:19]} Bd6 {[%clk 00:20:13]} {[%emt 00:00:07]} 10.
Bxd6 {[%clk 00:19:30]} {[%emt 00:00:31]} Qxd6 {[%clk 00:20:16]} {[%emt
00:00:02]} 11. Re1 {[%clk 00:19:06]} {[%emt 00:00:29]} O-O {[%clk 00:20:15]}
{[%emt 00:00:05]} 12. Nbd2 {[%clk 00:18:40]} {[%emt 00:00:31]} Rab8 {[%clk
00:19:51]} {[%emt 00:00:29]} 13. a4 {[%clk 00:17:49]} {[%emt 00:00:57]} a6
{[%clk 00:19:44]} {[%emt 00:00:12]} 14. Qb1 {[%clk 00:16:34]} {[%emt 00:01:19]}
Bg6 {[%clk 00:19:42]} {[%emt 00:00:07]} 15. Ne5 {[%clk 00:16:15]} {[%emt
00:00:25]} Bxd3 {[%clk 00:19:31]} {[%emt 00:00:15]} 16. Qxd3 {[%clk 00:15:44]}
{[%emt 00:00:36]} Nd7 {[%clk 00:19:31]} {[%emt 00:00:05]} 17. Ndf3 {[%clk
00:15:28]} {[%emt 00:00:21]} Ncxe5 {[%clk 00:18:48]} {[%emt 00:00:48]} 18. Nxe5
{[%clk 00:15:07]} {[%emt 00:00:26]} b5 {[%clk 00:18:37]} {[%emt 00:00:17]} 19.
axb5 {[%clk 00:14:45]} {[%emt 00:00:28]} axb5 {[%clk 00:18:27]} {[%emt
00:00:15]} 20. b4 {[%clk 00:13:56]} {[%emt 00:00:53]} Rfc8 {[%clk 00:17:40]}
{[%emt 00:00:52]} 21. Ra5 {[%clk 00:13:04]} {[%emt 00:00:58]} Nxe5 {[%clk
00:17:29]} {[%emt 00:00:15]} 22. Rxe5 {[%clk 00:12:34]} {[%emt 00:00:35]} Rc4
{[%clk 00:17:02]} {[%emt 00:00:32]} 23. Re1 {[%clk 00:11:33]} {[%emt 00:01:06]}
Qc6 {[%clk 00:16:36]} {[%emt 00:00:31]} 24. Rea1 {[%clk 00:10:14]} {[%emt
00:01:24]} g6 {[%clk 00:08:43]} {[%emt 00:07:58]} 25. R1a3 {[%clk 00:09:54]}
{[%emt 00:00:25]} Rc8 {[%clk 00:08:23]} {[%emt 00:00:25]} 26. Ra6 {[%clk
00:09:53]} {[%emt 00:00:06]} Qc7 {[%clk 00:08:20]} {[%emt 00:00:08]} 27. Ra7
{[%clk 00:09:45]} {[%emt 00:00:12]} Qf4 {[%clk 00:08:10]} {[%emt 00:00:15]} 28.
Ra8 {[%clk 00:07:40]} {[%emt 00:02:10]} Rxa8 {[%clk 00:04:31]} {[%emt
00:03:44]} 29. Rxa8+ {[%clk 00:07:37]} {[%emt 00:00:09]} Kg7 {[%clk 00:04:33]}
{[%emt 00:00:01]} 30. Ra1 {[%clk 00:06:44]} {[%emt 00:00:58]} e5 {[%clk
00:04:25]} {[%emt 00:00:14]} 31. dxe5 {[%clk 00:05:51]} {[%emt 00:00:58]} Qxe5
{[%clk 00:04:27]} {[%emt 00:00:02]} 32. Rd1 {[%clk 00:05:26]} {[%emt 00:00:30]}
h5 {[%clk 00:02:42]} {[%emt 00:01:50]} 33. Qxd5 {[%clk 00:05:15]} {[%emt
00:00:16]} Qxc3 {[%clk 00:02:37]} {[%emt 00:00:09]} 34. Qxb5 {[%clk 00:05:06]}
{[%emt 00:00:15]} Rxb4 {[%clk 00:01:45]} {[%emt 00:00:57]} 35. Qd5 {[%clk
00:04:28]} {[%emt 00:00:43]} 1/2-1/2



[ePGN "0.1;DGT LiveChess/2.2.6"]

[Event "MČR juniorů a juniorek v rapid šachu 2024"]
[Site "Hotel Fit Fun, Harrachov, Czech Republic"]
[Date "2024.09.21"]
[Round "6.1"]
[White "Steinbauer Sebastian"]
[Black "Skypala Ondrej"]
[Result "0-1"]
[TimeControl "20+5"]
[WhiteFideId "399272"]
[BlackFideId "366285"]
[WhiteElo "2062"]
[BlackElo "2033"]

1. e4 {[%clk 00:20:08]} {[%emt 00:00:01]} e6 {[%clk 00:20:09]} {[%emt
00:00:01]} 2. d4 {[%clk 00:20:12]} {[%emt 00:00:01]} d5 {[%clk 00:20:13]} 3.
exd5 {[%clk 00:20:16]} {[%emt 00:00:02]} exd5 {[%clk 00:20:16]} 4. Bd3 {[%clk
00:20:20]} {[%emt 00:00:01]} Bd6 {[%clk 00:20:19]} {[%emt 00:00:02]} 5. c3
{[%clk 00:20:22]} {[%emt 00:00:03]} Ne7 {[%clk 00:20:20]} {[%emt 00:00:04]} 6.
Nf3 {[%clk 00:20:26]} {[%emt 00:00:02]} Bg4 {[%clk 00:20:24]} {[%emt 00:00:01]}
7. Bg5 {[%clk 00:20:29]} {[%emt 00:00:02]} f6 {[%clk 00:20:27]} {[%emt
00:00:02]} 8. Bh4 {[%clk 00:20:33]} Nbc6 {[%clk 00:20:31]} {[%emt 00:00:01]} 9.
Nbd2 {[%clk 00:20:37]} {[%emt 00:00:02]} Qd7 {[%clk 00:20:35]} 10. Bg3 {[%clk
00:20:16]} {[%emt 00:00:26]} O-O-O {[%clk 00:20:30]} {[%emt 00:00:09]} 11. O-O
{[%clk 00:20:01]} {[%emt 00:00:20]} h5 {[%clk 00:20:10]} {[%emt 00:00:25]} 12.
b4 {[%clk 00:19:43]} {[%emt 00:00:23]} g5 {[%clk 00:19:54]} {[%emt 00:00:21]}
13. Qa4 {[%clk 00:19:36]} {[%emt 00:00:12]} Bxg3 {[%clk 00:18:13]} {[%emt
00:01:46]} 14. hxg3 {[%clk 00:16:57]} {[%emt 00:02:44]} h4 {[%clk 00:18:03]}
{[%emt 00:00:15]} 15. gxh4 {[%clk 00:16:52]} {[%emt 00:00:10]} gxh4 {[%clk
00:17:56]} {[%emt 00:00:12]} 16. b5 {[%clk 00:16:47]} {[%emt 00:00:10]} Nb8
{[%clk 00:18:00]} {[%emt 00:00:01]} 17. Qxa7 {[%clk 00:16:34]} {[%emt
00:00:19]} Rdg8 {[%clk 00:17:58]} {[%emt 00:00:06]} 18. Kh2 {[%clk 00:10:24]}
{[%emt 00:06:15]} Qd6+ {[%clk 00:17:22]} {[%emt 00:00:41]} 19. Kh1 {[%clk
00:10:28]} Qf4 {[%clk 00:17:02]} {[%emt 00:00:25]} 20. Be2 {[%clk 00:08:21]}
{[%emt 00:02:12]} Nf5 {[%clk 00:17:01]} {[%emt 00:00:06]} 21. Bd1 {[%clk
00:02:38]} {[%emt 00:05:47]} Ng3+ {[%clk 00:16:15]} {[%emt 00:00:52]} 22. Kg1
{[%clk 00:02:42]} {[%emt 00:00:01]} h3 {[%clk 00:14:57]} {[%emt 00:01:24]} 23.
fxg3 {[%clk 00:02:39]} {[%emt 00:00:07]} Qxg3 {[%clk 00:14:30]} {[%emt
00:00:33]} 24. Nh4 {[%clk 00:00:06]} {[%emt 00:02:38]} Rxh4 {[%clk 00:14:09]}
{[%emt 00:00:26]} 25. Bxg4+ {[%clk 00:00:09]} {[%emt 00:00:02]} Rhxg4 {[%clk
00:13:56]} {[%emt 00:00:18]} 26. Rf2 {[%clk 00:00:07]} {[%emt 00:00:07]} h2+
{[%clk 00:13:59]} {[%emt 00:00:01]} 0-1



[ePGN "0.1;DGT LiveChess/2.2.6"]

[Event "MČR juniorů a juniorek v rapid šachu 2024"]
[Site "Hotel Fit Fun, Harrachov, Czech Republic"]
[Date "2024.09.21"]
[Round "6.10"]
[White "Nespurek Jakub"]
[Black "Stocek Martin"]
[Result "0-1"]
[TimeControl "20+5"]
[WhiteFideId "391816"]
[BlackFideId "380121"]
[WhiteElo "1817"]
[BlackElo "2021"]

1. e4 {[%clk 00:20:08]} {[%emt 00:00:02]} c6 {[%clk 00:20:09]} 2. d4 {[%clk
00:20:11]} {[%emt 00:00:01]} d5 {[%clk 00:20:13]} {[%emt 00:00:02]} 3. f3
{[%clk 00:20:15]} e6 {[%clk 00:20:15]} {[%emt 00:00:02]} 4. Nc3 {[%clk
00:20:19]} {[%emt 00:00:02]} Nf6 {[%clk 00:20:16]} {[%emt 00:00:04]} 5. e5
{[%clk 00:20:22]} {[%emt 00:00:02]} Nfd7 {[%clk 00:20:19]} {[%emt 00:00:02]} 6.
f4 {[%clk 00:20:25]} {[%emt 00:00:01]} c5 {[%clk 00:20:20]} {[%emt 00:00:04]} 7.
Nf3 {[%clk 00:20:20]} {[%emt 00:00:10]} Nc6 {[%clk 00:20:23]} {[%emt 00:00:02]}
8. Be3 {[%clk 00:18:51]} {[%emt 00:01:34]} Ne7 {[%clk 00:18:44]} {[%emt
00:01:45]} 9. g4 {[%clk 00:17:07]} {[%emt 00:01:48]} Nc6 {[%clk 00:18:38]}
{[%emt 00:00:12]} 10. Bb5 {[%clk 00:15:28]} {[%emt 00:01:44]} a6 {[%clk
00:15:38]} {[%emt 00:03:06]} 11. Bxc6 {[%clk 00:13:58]} {[%emt 00:01:33]} bxc6
{[%clk 00:15:42]} {[%emt 00:00:02]} 12. dxc5 {[%clk 00:13:02]} {[%emt
00:01:01]} Nxc5 {[%clk 00:15:45]} {[%emt 00:00:02]} 13. Nd4 {[%clk 00:12:42]}
{[%emt 00:00:24]} Qc7 {[%clk 00:15:47]} {[%emt 00:00:04]} 14. Nf3 {[%clk
00:07:11]} {[%emt 00:05:35]} Nd7 {[%clk 00:15:11]} {[%emt 00:00:42]} 15. Bf2
{[%clk 00:04:20]} {[%emt 00:02:55]} Rb8 {[%clk 00:14:45]} {[%emt 00:00:33]} 16.
O-O {[%clk 00:02:35]} {[%emt 00:01:49]} Be7 {[%clk 00:13:53]} {[%emt 00:00:56]}
17. f5 {[%clk 00:01:33]} {[%emt 00:01:08]} Rxb2 {[%clk 00:07:22]} {[%emt
00:06:36]} 18. Bg3 {[%clk 00:00:58]} {[%emt 00:00:40]} Rb4 {[%clk 00:06:08]}
{[%emt 00:01:19]} 19. fxe6 {[%clk 00:00:23]} {[%emt 00:00:40]} fxe6 {[%clk
00:06:08]} {[%emt 00:00:05]} 20. Nd4 {[%clk 00:00:24]} {[%emt 00:00:04]} Rxd4
{[%clk 00:05:40]} {[%emt 00:00:33]} 21. Qf3 {[%clk 00:00:11]} {[%emt 00:00:18]}
Rf8 {[%clk 00:05:27]} {[%emt 00:00:18]} 22. Qe2 {[%clk 00:00:13]} {[%emt
00:00:02]} Rc4 {[%clk 00:05:16]} {[%emt 00:00:17]} 23. Rxf8+ {[%clk 00:00:13]}
{[%emt 00:00:04]} Nxf8 {[%clk 00:05:04]} {[%emt 00:00:17]} 24. Qf3 {[%clk
00:00:08]} {[%emt 00:00:12]} Bc5+ {[%clk 00:04:04]} {[%emt 00:01:04]} 25. Kg2
{[%clk 00:00:12]} {[%emt 00:00:02]} Qf7 {[%clk 00:04:02]} {[%emt 00:00:06]} 26.
Qd3 {[%clk 00:00:10]} {[%emt 00:00:07]} Bd4 {[%clk 00:03:35]} {[%emt 00:00:32]}
27. Be1 {[%clk 00:00:14]} {[%emt 00:00:02]} Ng6 {[%clk 00:03:31]} {[%emt
00:00:09]} 28. Bd2 {[%clk 00:00:14]} {[%emt 00:00:05]} Bxc3 {[%clk 00:03:31]}
{[%emt 00:00:04]} 29. Rf1 {[%clk 00:00:16]} {[%emt 00:00:04]} Rxg4+ {[%clk
00:03:06]} {[%emt 00:00:30]} 30. Kh1 {[%clk 00:00:10]} {[%emt 00:00:10]} Qb7
{[%clk 00:01:55]} {[%emt 00:01:17]} 31. Bxc3 {[%clk 00:00:09]} {[%emt
00:00:06]} c5 {[%clk 00:01:47]} {[%emt 00:00:13]} 32. Qf3 {[%clk 00:00:07]}
{[%emt 00:00:08]} d4 {[%clk 00:01:47]} {[%emt 00:00:04]} 0-1



[ePGN "0.1;DGT LiveChess/2.2.6"]